[Event "ETCC Open 2023"]
[Site "Budva"]
[Date "2023.11.11"]
[Round "1.43"]
[White "Beukema, Jasper"]
[Black "Socko, Bartosz"]
[Result "1/2-1/2"]
[ECO "B23"]
[WhiteElo "2357"]
[BlackElo "2545"]
[Annotator "RC"]
[PlyCount "187"]
[EventDate "2023.11.10"]
[EventType "team-tourn"]
[EventCountry "MNE"]
[SourceTitle "playchess.com"]
[Source "ChessBase"]
[SourceQuality "1"]
[WhiteTeam "Belgium"]
[BlackTeam "Poland"]
[WhiteTeamCountry "BEL"]
[BlackTeamCountry "POL"]
[TimeControl "40/5400+30:1800+30"]

1. e4 {[%emt 0:00:28]} c5 {[%emt 0:00:21]} 2. Nc3 {[%emt 0:00:19]} Nc6 {[%emt 0:00:48]} 3. Bb5 {[%emt 0:00:11]} Nd4 {[%emt 0:00:33]} 4. Bc4 {[%emt 0:00:05]} e6 {[%emt 0:01:28]} 5. Nge2 {[%emt 0:00:06]} Nf6 {[%emt 0:00:49]} 6. O-O {[%emt 0:00:36]} a6 {[%emt 0:00:40]} 7. d3 {[%emt 0:01:24]} b5 {[%emt 0:01:41]} 8. Bb3 {[%emt 0:00:12]} Nxb3 {[%emt 0:00:07]} 9. axb3 {[%emt 0:00:12]} Bb7 {[%emt 0:00:13]} 10. f4 {[%emt 0:07:17]} d5 {[%emt 0:05:36]} 11. e5 {[%emt 0:00:47]} d4 {[%emt 0:04:20]} 12. exf6 {[%emt 0:00:38]} dxc3 {[%emt 0:00:09]} 13. fxg7 {[%emt 0:00:15]} Bxg7 {[%emt 0:00:20]} 14. Nxc3 {[%emt 0:00:17]} Bd4+ {[%emt 0:11:59]} 15. Kh1 {[%emt 0:01:09]} Bxc3 {[%emt 0:06:15]} 16. bxc3 {[%emt 0:00:19]} Rg8 {[%emt 0:00:25]} 17. Rf2 {[%emt 0:01:05]} Qh4 {[%emt 0:00:55]} 18. Qe2 {[%emt 0:00:57]} O-O-O {[%emt 0:00:53]} 19. Be3 {[%emt 0:05:26]} Rg4 {[%emt 0:14:18]} 20. Rf3 {[%emt 0:06:28]} Rdg8 {[%emt 0:02:04]} 21. Rg1 {[%emt 0:00:24]} R8g6 {[%emt 0:19:18]} 22. f5 {[%emt 0:12:10]} exf5 {[%emt 0:00:18]} 23. Bf2 {[%emt 0:02:50]} Qd8 {[%emt 0:03:37]} 24. Rg3 {[%emt 0:11:34]} Re6 {[%emt 0:02:30]} 25. Re3 {[%emt 0:02:49]} Qd5 {[%emt 0:05:10]} 26. Rxe6 {[%emt 0:01:46]} fxe6 {[%emt 0:00:09]} 27. Bg3 {[%emt 0:00:53]} Rg6 {[%emt 0:05:46]} 28. c4 {[%emt 0:06:19]} bxc4 {[%emt 0:01:18]} 29. bxc4 {[%emt 0:00:20]} Qd4 {[%emt 0:00:47]} 30. Be5 {[%emt 0:00:34]} Qd7 {[%emt 0:02:40]} 31. Qe3 {[%emt 0:02:07]} Qc6 {[%emt 0:04:10]} 32. Bg3 {[%emt 0:00:43]} Kd7 {[%emt 0:02:55]} 33. Qe5 {[%emt 0:01:41]} Rg8 {[%emt 0:00:25]} 34. Qf6 {[%emt 0:03:09]} Ke8 {[%emt 0:00:09]} 35. Bh4 {[%emt 0:04:05]} Qd6 {[%emt 0:00:08]} 36. Bg5 {[%emt 0:01:58]} Rg6 {[%emt 0:03:28]} 37. Qh8+ {[%emt 0:00:43]} Kf7 {[%emt 0:01:11]} 38. Qxh7+ {[%emt 0:00:19]} Rg7 {[%emt 0:00:02]} 39. Qh5+ {[%emt 0:00:32]} Rg6 {[%emt 0:00:01]} 40. Qh4 {[%emt 0:14:08]} Qd4 {[%emt 0:01:49]} 41. Qxd4 {[%emt 0:38:30]} cxd4 {[%emt 0:30:11]} 42. h4 {[%emt 0:00:04]} e5 {[%emt 0:00:43]} 43. Rb1 {[%emt 0:02:16]} Bc6 {[%emt 0:00:24]} 44. Ra1 {[%emt 0:00:24]} Bb7 {[%emt 0:00:00]} 45. Kh2 {[%emt 0:00:00]} Rb6 {[%emt 0:00:00]} 46. Ra5 {[%emt 0:00:00]} Re6 {[%emt 0:00:00]} 47. h5 {[%emt 0:00:00]} Kg7 {[%emt 0:00:00]} 48. Bd8 {[%emt 0:00:00]} Kh6 {[%emt 0:00:00]} 49. Bc7 {[%emt 0:00:00]} Kxh5 {[%emt 0:00:00]} 50. Rxe5 {[%emt 0:00:00]} Rxe5 {[%emt 0:00:00]} 51. Bxe5 {[%emt 0:00:00]} Bc6 {[%emt 0:00:00]} 52. Kg3 {[%emt 0:00:00]} Ba4 {[%emt 0:00:00]} 53. c5 {[%emt 0:00:00]} a5 {[%emt 0:00:00]} 54. c3 {[%emt 0:00:00]} dxc3 {[%emt 0:00:00]} 55. Bxc3 {[%emt 0:00:00]} Kg5 {[%emt 0:00:00]} 56. Bd2+ {[%emt 0:01:22]} Kf6 {[%emt 0:00:00]} 57. Bxa5 {[%emt 0:03:20]} Bc6 {[%emt 0:00:00]} 58. Bd2 {[%emt 0:03:27]} Ke6 {[%emt 0:00:00]} 59. Be3 {[%emt 0:01:36]} Bb5 {[%emt 0:00:00]} 60. d4 {[%emt 0:00:13]} Bc6 {[%emt 0:00:00]} 61. Kf2 {[%emt 0:00:59]} Kd5 {[%emt 0:00:06]} 62. g3 {[%emt 0:00:12]} Ke6 {[%emt 0:00:45]} 63. Ke2 {[%emt 0:00:12]} Be4 {[%emt 0:00:15]} 64. Kd2 {[%emt 0:01:05]} Bc6 {[%emt 0:00:23]} 65. Kc3 {[%emt 0:00:14]} Bd5 {[%emt 0:00:09]} 66. Kb4 {[%emt 0:00:51]} Kd7 {[%emt 0:00:16]} 67. Kb5 {[%emt 0:00:14]} Bc6+ {[%emt 0:00:07]} 68. Kb6 {[%emt 0:01:06]} Bd5 {[%emt 0:00:06]} 69. Bf4 {[%emt 0:00:06]} Bc6 {[%emt 0:00:07]} 70. Be5 {[%emt 0:00:20]} Bd5 {[%emt 0:00:05]} 71. Kb5 {[%emt 0:00:02]} Bc6+ {[%emt 0:00:06]} 72. Kc4 {[%emt 0:00:03]} Ke6 {[%emt 0:00:04]} 73. Kd3 {[%emt 0:00:12]} Bd5 {[%emt 0:00:05]} 74. Ke3 {[%emt 0:00:03]} Bc6 {[%emt 0:00:16]} 75. Kf4 {[%emt 0:00:05]} Bd5 {[%emt 0:00:06]} 76. Kg5 {[%emt 0:00:18]} Be4 {[%emt 0:00:47]} 77. Bd6 {[%emt 0:01:15]} Bd5 {[%emt 0:00:08]} 78. Kf4 {[%emt 0:00:03]} Bc6 {[%emt 0:00:07]} 79. Kg5 {[%emt 0:00:50]} Bd5 {[%emt 0:00:16]} 80. Kg6 {[%emt 0:00:03]} Be4 {[%emt 0:00:09]} 81. Kg7 {[%emt 0:00:04]} Bd5 {[%emt 0:00:07]} 82. Kf8 {[%emt 0:00:05]} Bc6 {[%emt 0:00:04]} 83. Bf4 {[%emt 0:01:31]} Bb5 {[%emt 0:00:09]} 84. Be3 {[%emt 0:00:36]} Bc6 {[%emt 0:00:07]} 85. Bg1 {[%emt 0:00:41]} Bb5 {[%emt 0:00:05]} 86. Be3 {[%emt 0:00:41]} Bc6 {[%emt 0:00:05]} 87. d5+ {[%emt 0:00:10]} Kxd5 {[%emt 0:00:37]} 88. Ke7 {[%emt 0:00:05]} Bb5 {[%emt 0:00:17]} 89. Kf6 {[%emt 0:00:38]} Bd3 {[%emt 0:00:09]} 90. Bf2 {[%emt 0:00:13]} Kc6 {[%emt 0:00:28]} 91. Be3 {[%emt 0:00:28]} Bc2 {[%emt 0:00:05]} 92. Bf2 {[%emt 0:00:04]} Bd3 {[%emt 0:00:04]} 93. Be3 {[%emt 0:00:02]} Bc2 {[%emt 0:00:03]} 94. Bf2 {[%emt 0:00:03]} 1/2-1/2

[Event "ETCC Open 2023"]
[Site "Budva"]
[Date "2023.11.11"]
[Round "1.44"]
[White "Gumularz, Szymon"]
[Black "Lenaerts, Lennert"]
[Result "1-0"]
[ECO "A17"]
[WhiteElo "2580"]
[BlackElo "2322"]
[Annotator "TA"]
[PlyCount "155"]
[EventDate "2023.11.10"]
[EventType "team-tourn"]
[EventCountry "MNE"]
[SourceTitle "playchess.com"]
[Source "ChessBase"]
[SourceQuality "1"]
[WhiteTeam "Poland"]
[BlackTeam "Belgium"]
[WhiteTeamCountry "POL"]
[BlackTeamCountry "BEL"]
[TimeControl "40/5400+30:1800+30"]

{[%evp 9,155,11,24,20,25,19,16,16,29,12,25,20,16,12,12,4,19,10,10,7,6,15,14,15,35,29,27,25,46,31,39,29,85,48,129,89,83,89,87,71,129,106,112,74,75,87,136,14,93,12,12,9,8,4,6,5,7,-2,0,0,0,0,0,0,0,-27,-30,-31,126,130,210,210,210,210,207,207,206,191,207,196,193,185,160,90,212,90,90,90,154,90,90,90,90,90,90,90,90,90,90,96,97,97,90,0,152,141,226,226,460,226,226,226,738,733,672,352,639,589,29969,29970,29970,29971,29971,29972,29972,29973,29973,29974,29974,29975,29974,29976,29976,29976,29976,29977,29977,29978,29979,29980,29979,29980,29978,29979,29983,29984,29984,29985]} 1. c4 {[%emt 0:00:04]} Nf6 {[%emt 0:00:44]} 2. Nf3 {[%emt 0:00:29]} e6 {[%emt 0:00:40]} 3. Nc3 {[%emt 0:00:13]} d5 {[%emt 0:01:50]} 4. e3 {[%emt 0:00:05]} a6 {[%emt 0:02:09]} 5. b3 {[%emt 0:00:56]} Bd6 {[%emt 0:01:43]} 6. g3 {[%emt 0:01:34] A17: English Opening: 1...Nf6 with ...Bb4.} O-O {[%emt 0:02:50]} 7. Bg2 {[%emt 0:00:21]} Re8 {[%emt 0:00:53]} 8. O-O {[%emt 0:04:03] The position is equal.} b6 {[%emt 0:02:24]} 9. cxd5 {[%emt 0:00:29]} exd5 {[%emt 0:00:06]} 10. Bb2 {[%emt 0:00:06]} Bb7 {[%emt 0:01:10]} 11. Rc1 {[%emt 0:00:43]} Nbd7 {[%emt 0:00:24]} 12. Ne2 {[%emt 0:02:40] [#]} c6 $146 {[%emt 0:06:53]} ({Predecessor:} 12... Rc8 13. d4 Ne4 14. Bh3 c5 15. dxc5 bxc5 16. Nf4 Bxf4 17. exf4 Rc7 18. b4 c4 {0-1 Iturrizaga Bonelli,E (2630)-Korobov,A (2671) ESP-chT CECLUB Honor 2022 (7.1)}) 13. Nf4 {[%emt 0:02:38]} Rc8 {[%emt 0:02:45]} 14. d4 {[%emt 0:00:51]} a5 {[%emt 0:02:28]} 15. Re1 {[%emt 0:00:17][%cal Bf1e1,Be1e2,Be2b2][%mdl 32]} Qe7 {[%emt 0:14:20]} 16. Re2 {[%emt 0:02:44]} Ba3 {[%emt 0:12:51]} 17. Bh3 {[%emt 0:04:36]} Bxb2 {[%emt 0:01:56]} 18. Rxb2 {[%emt 0:00:06][%cal Of3e5]} Ra8 {[%emt 0:01:17]} 19. Nd3 {[%emt 0:00:30]} Ne4 {[%emt 0:08:50]} 20. Rbc2 {[%emt 0:02:20]} f6 {[%emt 0:01:31]} (20... Nb8 $1 $11) 21. Nf4 {[%emt 0:02:17] aiming for Be6+.} (21. Rxc6 {keeps more tension.} Bxc6 22. Rxc6 Nf8 23. Nf4) 21... Red8 {[%emt 0:05:08]} (21... g5 $14) 22. Rxc6 {[%emt 0:30:46]} Bxc6 {[%emt 0:00:10]} 23. Rxc6 {[%emt 0:00:03]} Nf8 {[%emt 0:00:42] Black is weak on the light squares} 24. Qc2 $1 {[%emt 0:02:18]} (24. Rxb6 $6 Qc7 25. Be6+ Nxe6 26. Rxe6 Qd7 $15) 24... Ra7 {[%emt 0:02:53]} (24... Rd6 $142) 25. Rxb6 {[%emt 0:01:57] White is more active.} Rc7 {[%emt 0:08:42]} 26. Rc6 {[%emt 0:00:23]} Rxc6 {[%emt 0:00:16]} 27. Qxc6 {[%emt 0:00:08]} Qd6 {[%emt 0:00:15]} ({Better is} 27... Rd6 28. Qc2 (28. Nxd5 Qf7 $11) 28... Ng6) 28. Qb5 {[%emt 0:05:43]} (28. Qc2 $16) 28... Qb4 {[%emt 0:01:01]} (28... Qa3 $11 {keeps the balance.}) 29. Qxb4 {[%emt 0:14:11]} (29. Qd3 $1 $16) 29... axb4 $11 {[%emt 0:00:03]} 30. Nd3 {[%emt 0:00:26]} Rb8 {[%emt 0:00:12]} 31. Nfe1 {[%emt 0:04:34] Threatens to win with Nc2.} Nc3 {[%emt 0:00:53]} 32. Bg2 {[%emt 0:00:17]} Rb5 $1 {[%emt 0:04:12]} 33. Nc5 {[%emt 0:01:12]} Kf7 {[%emt 0:02:39]} 34. Ned3 {[%emt 0:01:41]} Ne6 {[%emt 0:00:33]} 35. Na6 $1 {[%emt 0:06:07]} Nxa2 {[%emt 0:00:19]} 36. Ndc5 $1 {[%emt 0:00:03]} Nxc5 $1 {[%emt 0:10:19]} (36... Nc3 37. Nxe6 Kxe6 38. Nc7+ Kd6 39. Nxb5+ Nxb5 40. Bf1 $16) 37. dxc5 {[%emt 0:02:19][%mdl 4096] Endgame Strongly threatening c6. KRN-KBN} Ke7 $1 {[%emt 0:00:22]} 38. Bxd5 {[%emt 0:00:03]} Nc1 $2 {[%emt 0:01:00]} (38... Ra5 $15 {stays ahead.} 39. Bb7 Nc3) 39. Bc4 $16 {[%emt 0:01:12]} Ra5 {[%emt 0:00:27]} (39... Rb7 $16) 40. c6 $18 {[%emt 0:00:13] Black must now prevent c7.} ({Worse is} 40. Nxb4 Rxc5 41. Kg2 Kd6 $11) 40... Rxa6 {[%emt 0:01:01]} 41. Bxa6 {[%emt 0:30:08] KB-KN} Kd6 {[%emt 0:30:02]} 42. Bc4 {[%emt 0:00:13][%cal Oc4d5]} Kxc6 {[%emt 0:00:03]} 43. g4 {[%emt 0:00:45]} g5 {[%emt 0:00:31]} 44. Kg2 {[%emt 0:03:14]} Na2 {[%emt 0:00:09]} 45. f4 {[%emt 0:02:58]} Nc3 {[%emt 0:00:49]} 46. Kf3 {[%emt 0:00:06] Prevents Ne4} (46. h4 $142) 46... Kc5 {[%emt 0:00:59]} (46... h6 $16 {is a better defense.}) 47. Bd3 {[%emt 0:01:39]} (47. h4 $1 $18 {[%cal Rh4g5] and White stays clearly on top.}) 47... h6 $16 {[%emt 0:00:09]} 48. Bc4 {[%emt 0:00:22]} Nb1 {[%emt 0:01:31] [#]} (48... Kd6 $142) 49. Bg8 {[%emt 0:00:00]} (49. Ke2 $142 $1) 49... Nc3 {[%emt 0:00:00]} 50. Be6 {[%emt 0:00:00]} Kd6 {[%emt 0:00:00]} 51. Bf7 {[%emt 0:00:00]} Kc5 {[%emt 0:00:00]} 52. Bg8 {[%emt 0:00:00]} Kd6 {[%emt 0:00:00]} 53. Bh7 {[%emt 0:00:00]} Kc5 {[%emt 0:00:00]} 54. Bd3 {[%emt 0:00:00]} Kd5 {[%emt 0:00:00]} 55. Ba6 {[%emt 0:00:00]} Kc5 {[%emt 0:00:00]} 56. Bc4 {[%emt 0:03:12]} (56. Bb7 $142) 56... Nb1 {[%emt 0:00:00] [#] ...Nd2+ would be deadly. Black is now going downhill.} 57. Ke2 {[%emt 0:00:07] Against Nd2} gxf4 {[%emt 0:00:00]} (57... Nc3+ $16 58. Kd3 Nb1) 58. exf4 $18 {[%emt 0:00:03]} Kd4 $2 {[%emt 0:00:00]} (58... Nc3+ 59. Kd3 Nd1) 59. Bg8 {[%emt 0:00:10]} (59. h4 $142 Nc3+ 60. Kf3) 59... Nc3+ {[%emt 0:00:00]} 60. Kf3 {[%emt 0:00:04] h4 is the strong threat.} Ne4 $2 {[%emt 0:00:00]} (60... Kc5 61. Ke3 Kd6) 61. h4 {[%emt 0:01:19]} Nd2+ {[%emt 0:00:00]} 62. Ke2 {[%emt 0:00:03]} Ne4 $2 {[%emt 0:00:00]} (62... Nb1 63. Bh7 Nc3+ 64. Kf3 Kd5 65. Bg8+ Kd6) 63. h5 {[%emt 0:00:27]} Nc5 {[%emt 0:00:15] [#]} 64. g5 $1 {[%emt 0:03:46][%mdl 512] White mates.} fxg5 {[%emt 0:00:04]} 65. fxg5 {[%emt 0:00:01]} Ke5 {[%emt 0:00:27]} 66. gxh6 {[%emt 0:00:16]} Kf6 {[%emt 0:00:04]} 67. Ke3 {[%emt 0:00:17]} Nb7 {[%emt 0:00:31]} 68. Kd4 {[%emt 0:00:28]} Nd6 {[%emt 0:00:04]} 69. Kc5 {[%emt 0:00:56]} Nf5 {[%emt 0:00:04]} 70. Kxb4 {[%emt 0:00:29]} Nxh6 {[%emt 0:00:01]} 71. Bd5 {[%emt 0:00:20]} Ng4 {[%emt 0:01:43]} 72. Kc5 {[%emt 0:00:47]} Ne5 {[%emt 0:00:12]} 73. Be4 {[%emt 0:00:25]} Nd7+ {[%emt 0:01:24]} 74. Kd6 {[%emt 0:00:12]} Ne5 {[%emt 0:00:04]} 75. b4 {[%emt 0:01:12]} Nc4+ {[%emt 0:00:03]} 76. Kc5 {[%emt 0:00:17]} Na3 {[%emt 0:00:03]} 77. h6 {[%emt 0:00:23]} Kf7 {[%emt 0:00:04]} 78. Bd3 {[%emt 0:00:15] Weighted Error Value: White=0.20 (precise) /Black=0.22 (precise)} ({And not} 78. b5 Nxb5 79. Bh7 (79. Kxb5 Kg8 $11) 79... Nc7 $11) 1-0

[Event "ETCC Open 2023"]
[Site "Budva"]
[Date "2023.11.11"]
[Round "1.45"]
[White "Erdos, Viktor"]
[Black "Keinanen, Toivo"]
[Result "1/2-1/2"]
[ECO "D53"]
[WhiteElo "2557"]
[BlackElo "2527"]
[Annotator "RC"]
[PlyCount "82"]
[EventDate "2023.11.10"]
[EventType "team-tourn"]
[EventCountry "MNE"]
[SourceTitle "playchess.com"]
[Source "ChessBase"]
[SourceQuality "1"]
[WhiteTeam "Hungary"]
[BlackTeam "Finland"]
[WhiteTeamCountry "HUN"]
[BlackTeamCountry "FIN"]
[TimeControl "40/5400+30:1800+30"]

1. d4 {[%emt 0:00:18]} d5 {[%emt 0:00:05]} 2. c4 {[%emt 0:00:06]} e6 {[%emt 0:00:01]} 3. Nf3 {[%emt 0:00:08]} Nf6 {[%emt 0:00:03]} 4. Nc3 {[%emt 0:00:06]} Be7 {[%emt 0:00:02]} 5. Bg5 {[%emt 0:00:08]} h6 {[%emt 0:01:04]} 6. Bh4 {[%emt 0:00:10]} dxc4 {[%emt 0:00:08]} 7. e3 {[%emt 0:00:07]} Nd5 {[%emt 0:00:02]} 8. Bxe7 {[%emt 0:02:29]} Qxe7 {[%emt 0:00:27]} 9. Qa4+ {[%emt 0:01:09]} c6 {[%emt 0:07:17]} 10. Qxc4 {[%emt 0:01:12]} b6 {[%emt 0:09:03]} 11. Be2 {[%emt 0:20:15]} O-O {[%emt 0:02:57]} 12. Rc1 {[%emt 0:01:04]} Nxc3 {[%emt 0:13:29]} 13. Rxc3 {[%emt 0:32:07]} Bb7 {[%emt 0:12:42]} 14. Ne5 {[%emt 0:00:13]} Rc8 {[%emt 0:11:40]} 15. Bh5 {[%emt 0:01:22]} g6 {[%emt 0:04:36]} 16. Bf3 {[%emt 0:00:27]} Kg7 {[%emt 0:10:13]} 17. Qa4 {[%emt 0:06:39]} c5 {[%emt 0:04:24]} 18. dxc5 {[%emt 0:07:59]} bxc5 {[%emt 0:06:30]} 19. O-O {[%emt 0:18:43]} Bxf3 {[%emt 0:01:44]} 20. Nxf3 {[%emt 0:00:02]} Nd7 {[%emt 0:00:19]} 21. Rfc1 {[%emt 0:00:32]} a5 {[%emt 0:07:36]} 22. h3 {[%emt 0:00:54]} Rcb8 {[%emt 0:00:47]} 23. Rb3 {[%emt 0:02:16]} Rxb3 {[%emt 0:04:02]} 24. Qxb3 {[%emt 0:00:02]} a4 {[%emt 0:01:54]} 25. Qb7 {[%emt 0:02:52]} Rb8 {[%emt 0:00:49]} 26. Qc7 {[%emt 0:00:02]} Qe8 {[%emt 0:00:24]} 27. Ne5 {[%emt 0:01:13]} Nf6 {[%emt 0:00:53]} 28. Nc4 {[%emt 0:01:04]} Qf8 {[%emt 0:00:47]} 29. Rd1 {[%emt 0:00:38]} Qc8 {[%emt 0:00:30]} 30. Qe5 {[%emt 0:00:16]} Rb4 {[%emt 0:00:26]} 31. Qc3 {[%emt 0:00:43]} Qc7 {[%emt 0:00:32]} 32. Nd6 {[%emt 0:00:20]} Qb8 {[%emt 0:00:32]} 33. Rd2 {[%emt 0:00:39]} g5 {[%emt 0:00:27]} 34. Qxc5 {[%emt 0:00:34]} Rxb2 {[%emt 0:00:32]} 35. Rxb2 {[%emt 0:00:23]} Qxb2 {[%emt 0:00:01]} 36. Qc7 {[%emt 0:00:08]} Qb1+ {[%emt 0:00:52]} 37. Kh2 {[%emt 0:00:01]} Qg6 {[%emt 0:00:03]} 38. Qc3 {[%emt 0:00:48]} Kh7 {[%emt 0:00:35]} 39. Qc7 {[%emt 0:00:29]} Kg7 {[%emt 0:00:59]} 40. Qc3 {[%emt 0:00:07]} Kh7 {[%emt 0:00:21]} 41. Qc7 {[%emt 0:30:44]} Kg7 {[%emt 0:01:12]} 1/2-1/2

[Event "ETCC Open 2023"]
[Site "Budva"]
[Date "2023.11.11"]
[Round "1.46"]
[White "Sipila, Vilka"]
[Black "Gledura, Benjamin"]
[Result "1/2-1/2"]
[ECO "B33"]
[WhiteElo "2429"]
[BlackElo "2633"]
[Annotator "TA"]
[PlyCount "104"]
[EventDate "2023.11.10"]
[EventType "team-tourn"]
[EventCountry "MNE"]
[SourceTitle "playchess.com"]
[Source "ChessBase"]
[SourceQuality "1"]
[WhiteTeam "Finland"]
[BlackTeam "Hungary"]
[WhiteTeamCountry "FIN"]
[BlackTeamCountry "HUN"]
[TimeControl "40/5400+30:1800+30"]

{[%evp 19,104,10,9,12,9,0,0,0,0,0,78,5,129,0,8,0,8,0,47,50,68,72,115,110,114,32,117,110,107,106,220,228,224,209,331,258,236,182,187,186,320,311,308,311,308,307,302,262,340,235,321,253,235,0,0,0,0,0,0,0,0,0,0,0,0,0,0,0,0,0,0,0,0,0,0,0,0,0,0,0,0,-8,0,0,0,0,0]} 1. e4 {[%emt 0:00:01] Shankland,Samuel L} c5 {[%emt 0:00:22]} 2. Nf3 {[%emt 0:00:06]} Nc6 {[%emt 0:00:29]} 3. d4 {[%emt 0:00:24]} cxd4 {[%emt 0:00:07]} 4. Nxd4 {[%emt 0:00:03]} Nf6 {[%emt 0:00:14]} 5. Nc3 {[%emt 0:00:06]} e5 {[%emt 0:01:44]} 6. Ndb5 {[%emt 0:00:06]} d6 {[%emt 0:00:09]} 7. Nd5 {[%emt 0:00:05]} Nxd5 {[%emt 0:00:10]} 8. exd5 {[%emt 0:00:05]} Nb8 {[%emt 0:01:22]} 9. a4 {[%emt 0:00:08]} Be7 {[%emt 0:01:42]} 10. Be2 {[%emt 0:00:05]} O-O {[%emt 0:01:58]} 11. O-O {[%emt 0:00:04] B33: Sicilian: Pelikan and Sveshnikov Variations.} Nd7 {[%emt 0:02:02]} 12. b4 {[%emt 0:00:15]} a6 {[%emt 0:01:43]} 13. Na3 {[%emt 0:00:17]} a5 {[%emt 0:00:43]} 14. bxa5 {[%emt 0:00:20]} Ra7 {[%emt 1:24:45] [#]} (14... Qxa5 $11 15. Nb5 Qb6) 15. a6 Rxa6 {[%emt 0:00:00]} (15... b6 $11) 16. Nc4 {[%emt 0:00:55]} (16. Bxa6 $16 bxa6 17. Be3) 16... Ra8 {[%emt 0:00:00]} 17. Be3 {[%emt 0:01:03]} f5 {[%emt 0:00:00]} 18. a5 {[%emt 0:00:39] [#]} Rf6 $146 {[%emt 0:00:00]} (18... f4 $11 19. Bd2 Nc5) ({Predecessor:} 18... f4 19. Bb6 Qe8 20. Ra3 Qg6 21. Bc7 e4 22. Kh1 b5 23. Nb6 Nxb6 24. Bxb6 Qg5 25. g3 b4 {½-½ Caruana,F (2832)-Carlsen,M (2835) World-ch Carlsen-Caruana 2018 (10)}) 19. f4 $14 {[%emt 0:17:41]} Qf8 {[%emt 0:00:00]} 20. fxe5 {[%emt 0:18:28] White is much more active.} Nxe5 {[%emt 0:00:00]} 21. Nb6 $1 {[%emt 0:09:02]} Rb8 {[%emt 0:00:00]} 22. c4 {[%emt 0:00:22]} ({Better is} 22. Qd2 $16) 22... Nd7 {[%emt 0:00:00]} (22... f4 $1 $14 23. Bd4 f3) 23. Nxd7 $16 {[%emt 0:07:53]} Bxd7 {[%emt 0:00:00]} 24. Rb1 $36 {[%emt 0:01:55][%mdl 2048] White is really pushing.} Bd8 {[%emt 0:00:00] [#]} (24... Qc8 $16) 25. a6 $1 $18 {[%emt 0:11:43]} b6 {[%emt 0:00:00] [#]} 26. Qb3 $1 {[%emt 0:00:14] a7 is the strong threat.} Qe7 {[%emt 0:00:00]} (26... Bc8 {was worth a try.} 27. Qa4 (27. a7 Ra8 $16) 27... Qe7) 27. Rfe1 {[%emt 0:04:01]} Ba4 {[%emt 0:00:00]} 28. Qxa4 {[%emt 0:09:32]} Qxe3+ {[%emt 0:00:00]} 29. Kh1 {[%emt 0:00:03]} b5 {[%emt 0:00:00]} (29... Rf8 {keeps fighting.}) 30. cxb5 {[%emt 0:04:43]} ({Don't do} 30. Rxb5 $6 Rxb5 31. cxb5 Rf7 $16) 30... Bb6 {[%emt 0:00:00]} 31. Bf3 {[%emt 0:00:40]} Qf2 {[%emt 0:00:00]} 32. Re2 {[%emt 0:10:04]} Qc5 {[%emt 0:00:00]} 33. Qc2 {[%emt 0:00:21]} Qd4 {[%emt 0:00:14]} 34. g3 {[%emt 0:04:58]} Bc5 {[%emt 0:01:56]} 35. Qb3 {[%emt 0:00:37] Hoping for Rd1.} Rff8 {[%emt 0:01:32]} 36. Qd1 $2 {[%emt 0:00:51]} (36. Rc2 $18) 36... Rxb5 $11 {[%emt 0:01:10][%mdl 64] Deflection. The position is equal.} 37. Rd2 {[%emt 0:00:37]} Qxd2 {[%emt 0:02:37][%mdl 64] Deflection} 38. Rxb5 {[%emt 0:00:13]} Qa2 {[%emt 0:01:49]} 39. Qe2 {[%emt 0:00:15]} Qxa6 {[%emt 0:01:45]} 40. Qe6+ $1 {[%emt 0:00:02]} Kh8 {[%emt 0:00:10]} 41. Qxf5 $1 {[%emt 0:30:03][%cal Rf5f8][%mdl 64] Deflection, Back Rank} Qa8 {[%emt 0:31:23]} 42. Qb1 {[%emt 0:00:56]} Qe8 {[%emt 0:00:46]} 43. Rb3 {[%emt 0:00:33]} Ba7 {[%emt 0:00:00]} 44. Ra3 {[%emt 0:00:00]} Bd4 {[%emt 0:00:00]} 45. Rb3 {[%emt 0:00:00]} g6 {[%emt 0:00:00]} 46. Qd1 {[%emt 0:00:00]} Qe5 {[%emt 0:00:00]} 47. Kg2 {[%emt 0:00:00]} Bc5 {[%emt 0:00:00]} 48. Qd2 {[%emt 0:00:00]} Kg8 {[%emt 0:00:00]} 49. Qh6 {[%emt 0:00:00] Threatening mate with Rb7.} Qf5 {[%emt 0:00:00] And now ...Qc2+ would win.} 50. Qc1 {[%emt 0:00:00] Dodges Qc2+} h5 {[%emt 0:00:00]} 51. Qb1 {[%emt 0:00:00]} Qxb1 {[%emt 0:00:00]} 52. Rxb1 {[%emt 0:00:00]} Kg7 {[%emt 0:00:00] Black defended with fortune. A brilliant game!   Weighted Error Value: White=0.24 (precise) /Black=0.26 (precise)} 1/2-1/2

[Event "ETCC Open 2023"]
[Site "Budva"]
[Date "2023.11.11"]
[Round "1.47"]
[White "Kozak, Adam"]
[Black "Sammalvuo, Tapani"]
[Result "1-0"]
[ECO "D31"]
[WhiteElo "2578"]
[BlackElo "2381"]
[Annotator "TA"]
[PlyCount "39"]
[EventDate "2023.11.10"]
[EventType "team-tourn"]
[EventCountry "MNE"]
[SourceTitle "playchess.com"]
[Source "ChessBase"]
[SourceQuality "1"]
[WhiteTeam "Hungary"]
[BlackTeam "Finland"]
[WhiteTeamCountry "HUN"]
[BlackTeamCountry "FIN"]
[TimeControl "40/5400+30:1800+30"]

{[%evp 13,39,14,24,21,24,23,32,29,9,36,40,38,67,77,81,77,76,73,74,79,62,70,77,64,58,66,225,228]} 1. d4 {[%emt 0:00:05]} d5 {[%emt 0:00:13]} 2. c4 {[%emt 0:00:07]} e6 {[%emt 0:00:05]} 3. Nc3 {[%emt 0:00:06]} Be7 {[%emt 0:00:04]} 4. cxd5 {[%emt 0:00:08]} exd5 {[%emt 0:00:01]} 5. Bf4 {[%emt 0:00:10]} c6 {[%emt 0:00:06]} 6. e3 {[%emt 0:00:17]} Bf5 {[%emt 0:00:02]} 7. Nge2 {[%emt 0:00:16][%cal Bg1e2,Be2g3,Bg3f5][%mdl 32]} Nd7 {[%emt 0:00:36] [#]} 8. h4 $1 {[%emt 0:05:47] D31: Queen's Gambit Declined: Semi-Slav without ...Nf6 (+ Marshall Gambit and Noteboom) and Exchange Variation lines without ...Nf6.} h5 {[%emt 0:05:38]} (8... Qb6 9. Qd2) 9. Ng3 {[%emt 0:05:55][%csl LRf5,LRh5]} Bg6 {[%emt 0:00:03]} 10. Bd3 {[%emt 0:00:19] White is slightly better.} Bxd3 {[%emt 0:05:30]} 11. Qxd3 {[%emt 0:01:07]} Ngf6 {[%emt 0:08:26] [#]} 12. O-O-O $146 {[%emt 0:01:49]} ({Predecessor:} 12. f3 O-O 13. O-O-O Re8 14. Kb1 g6 15. e4 dxe4 16. Ngxe4 Qa5 17. Bg5 Nxe4 18. Nxe4 {1-0 Tregubov,P (2588)-Azarov,S (2589) Titled Tuesday intern op 6th Aug blitz 2019 (9)}) 12... Qa5 {[%emt 0:16:10]} 13. Nf5 {[%emt 0:08:50]} Bf8 {[%emt 0:00:09]} 14. Kb1 {[%emt 0:05:14] White is much more active. The black rooks are badly placed.} O-O-O {[%emt 0:10:02]} 15. Rc1 {[%emt 0:09:37]} g6 {[%emt 0:02:51]} 16. Nd6+ {[%emt 0:02:42]} Bxd6 {[%emt 0:00:09]} 17. Bxd6 {[%emt 0:00:05]} Rhe8 {[%emt 0:02:07]} 18. f3 {[%emt 0:03:09]} Re6 {[%emt 0:04:37]} 19. Bf4 {[%emt 0:02:06]} Rde8 $2 {[%emt 0:03:44] [#]} (19... Qb4 $14) 20. Nb5 {[%emt 0:04:00] Weighted Error Value: White=0.02 (flawless) /Black=0.26 (precise)} 1-0